fUSD/lending_fUSD_20260218
["ID","MTS","AMOUNT","RATE_DAILY","PERIOD"]
[405940223,1771429845704,-996.49958588,0.00017733,2]
[405940224,1771429845713,-150.0,0.00017733,2]
[405940225,1771429845722,-195.43996712,0.00017735,2]
[405940226,1771429845733,-1000.0,0.00017743,2]
[405940227,1771429845743,-150.0,0.00017745,2]
[405940228,1771429845754,-150.0,0.00017746,2]
[405940229,1771429845765,-1003.50041412,0.00017748,2]
[405940230,1771429845775,-150.0,0.0001775,2]
[405940231,1771429845786,-150.0,0.00017753,2]
[405940232,1771429845798,-500.0,0.00017753,2]
[405940233,1771429845810,-500.0,0.00017753,2]
[405940234,1771429845822,-1000.0,0.00017756,2]
[405940235,1771429845832,-1000.0,0.00017756,2]
[405940236,1771429845843,-1000.0,0.00017759,2]
[405940237,1771429845854,-1000.0,0.00017759,2]
[405940238,1771429845865,-150.0,0.0001776,2]
[405940239,1771429845875,-1000.0,0.00017761,2]
[405940240,1771429845885,-1000.0,0.00017761,2]
[405940241,1771429845894,-150.0,0.00017769,2]
[405940242,1771429845904,-1000.0,0.0001777,2]
[405940244,1771429845914,-1000.0,0.00017773,2]
[405940246,1771429845925,-1000.0,0.00017773,2]
[405940247,1771429845935,-1000.0,0.00017776,2]
[405940248,1771429845946,-1000.0,0.00017779,2]
[405940249,1771429845958,-1000.0,0.0001778,2]
[405940250,1771429845970,-1000.0,0.00017781,2]
[405940251,1771429845982,-1000.0,0.00017789,2]
[405940252,1771429845994,-1000.0,0.00017789,2]
[405940253,1771429846007,-1000.0,0.00017794,2]
[405940254,1771429846019,-288.61284119,0.00017798,2]
[405940255,1771429846030,-1600.0,0.000178,6]
[405940256,1771429846041,-150.0,0.00017808,2]
[405940257,1771429846052,-500.0,0.00017808,2]
[405940258,1771429846063,-212.0,0.00017808,2]
[405940259,1771429846072,-500.0,0.00017808,2]
[405940260,1771429846084,-500.0,0.00017808,2]
[405940261,1771429846095,-150.00000002,0.00017808,2]
[405940262,1771429846109,-500.0,0.00017808,2]
[405940263,1771429846119,-1000.0,0.00017815,2]
[405940264,1771429846129,-1003.50041412,0.00017817,2]
[405940265,1771429846139,-2000.0,0.0001782,2]
[405940266,1771429846151,-2000.0,0.0001782,2]
[405940267,1771429846161,-884.83791224,0.00017827,2]
[405940268,1771429846171,-150.0,0.00017829,2]
[405940269,1771429846183,-1000.0,0.00017834,2]
[405940270,1771429846193,-1000.0,0.00017836,2]
[405940271,1771429846204,-150.0,0.00017845,2]
[405940272,1771429846215,-1000.0,0.00017845,2]
[405940273,1771429846225,-1000.0,0.00017847,2]
[405940274,1771429846236,-1000.0,0.00017848,2]
[405940275,1771429846246,-1000.0,0.00017854,2]
[405940276,1771429846256,-1000.0,0.0001786,2]
[405940277,1771429846266,-150.0,0.00017862,2]
[405940278,1771429846276,-500.0,0.00017862,2]
[405940279,1771429846286,-150.0,0.00017869,2]
[405940280,1771429846296,-1000.0,0.0001787,2]
[405940281,1771429846306,-150.0,0.00017875,2]
[405940282,1771429846316,-1000.0,0.0001788,2]
[405940283,1771429846326,-1000.0,0.00017885,2]
[405940284,1771429846336,-150.0,0.00017888,2]
[405940285,1771429846346,-150.0,0.00017891,2]
[405940286,1771429846357,-1000.0,0.00017894,2]
[405940287,1771429846367,-1000.0,0.00017895,2]
[405940288,1771429846378,-1000.0,0.00017898,2]
[405940289,1771429846388,-1000.0,0.00017899,2]
[405940290,1771429846399,-4447.91,0.000179,2]
[405940291,1771429846408,-25000.0,0.000179,3]
[405940292,1771429846419,-45508.25050114,0.000179,2]
[405940293,1771429846431,-1600.0,0.000179,6]
[405940294,1771429846441,-285.65412831,0.000179,2]
[405940295,1771429846451,-1283.29230842,0.000179,2]
[405940296,1771429846462,-150.47973038,0.000179,2]
[405940297,1771429846472,-1000.0,0.00017901,2]
[405940298,1771429846482,-1000.0,0.00017906,2]
[405940300,1771429846493,-1000.0,0.00017908,2]
[405940302,1771429846507,-150.0,0.00017909,2]
[405940303,1771429846518,-1000.0,0.00017912,2]
[405940304,1771429846528,-1000.0,0.00017917,2]
[405940305,1771429846541,-150.0,0.00017917,2]
[405940306,1771429846551,-500.0,0.00017917,2]
[405940307,1771429846562,-1000.0,0.00017918,2]
[405940309,1771429846573,-1000.0,0.00017926,2]
[405940311,1771429846583,-150.0,0.00017927,2]
[405940313,1771429846594,-996.49958588,0.00017927,2]
[405940315,1771429846604,-150.0,0.00017937,2]
[405940317,1771429846614,-150.0,0.0001794,2]
[405940319,1771429846624,-1000.0,0.00017941,2]
[405940321,1771429846634,-1000.0,0.00017941,2]
[405940323,1771429846643,-150.0,0.00017946,2]
[405940325,1771429846653,-1000.0,0.00017948,2]
[405940327,1771429846663,-1000.0,0.00017948,2]
[405940329,1771429846672,-3208.5258488,0.0001795,2]
[405940331,1771429846682,-1000.0,0.00017964,2]
[405940333,1771429846691,-150.0,0.00017967,2]
[405940335,1771429846702,-400.0,0.0001797,2]
[405940337,1771429846711,-400.0,0.0001797,2]
[405940338,1771429846721,-400.0,0.0001797,2]
[405940340,1771429846730,-600.0,0.0001797,2]
[405940342,1771429846740,-300.0,0.0001797,2]
[405940344,1771429846750,-300.0,0.0001797,2]
[405940346,1771429846760,-250.0,0.00017972,2]
[405940348,1771429846770,-500.0,0.00017972,2]
[405940350,1771429846780,-1000.0,0.00017977,2]
[405940352,1771429846790,-1000.0,0.00017987,2]
[405940354,1771429846799,-506.0,0.00017988,3]
[405940355,1771429846809,-1259.6943776,0.0001799,2]
[405940356,1771429846819,-151.0,0.00017997,2]
[405940357,1771429846828,-500.0,0.00017998,5]
[405940358,1771429846838,-693.3919763,0.00017998,5]
[405940359,1771429846848,-500.0,0.00017998,5]
[405940360,1771429846857,-719.04747942,0.00017998,5]
[405940361,1771429846878,-500.0,0.00017998,5]
[405940362,1771429846888,-745.65223616,0.00017998,5]
[405940363,1771429846899,-500.0,0.00017998,5]
[405940364,1771429846909,-773.2413689,0.00017998,5]
[405940365,1771429846919,-500.0,0.00017998,5]
[405940366,1771429846930,-801.85129955,0.00017998,5]
[405940367,1771429846940,-500.0,0.00017998,5]
[405940369,1771429846950,-831.51979763,0.00017998,5]
[405940371,1771429846961,-500.0,0.00017998,5]
[405940372,1771429846978,-862.28603014,0.00017998,5]
[405940373,1771429846988,-500.0,0.00017998,5]
[405940374,1771429847002,-894.19061326,0.00017998,5]
[405940375,1771429847012,-500.0,0.00017998,5]
[405940376,1771429847022,-927.27566595,0.00017998,5]
[405940377,1771429847033,-500.0,0.00017998,5]
[405940378,1771429847043,-961.58486559,0.00017998,5]
[405940379,1771429847053,-500.0,0.00017998,5]
[405940380,1771429847063,-997.16350561,0.00017998,5]
[405940381,1771429847073,-151.0,0.00017998,5]
[405940382,1771429847084,-151.0,0.00017998,5]
[405940383,1771429847094,-151.0,0.00017998,5]
[405940384,1771429847104,-151.0,0.00017998,5]
[405940385,1771429847115,-151.0,0.00017998,5]
[405940386,1771429847127,-151.0,0.00017998,5]
[405940387,1771429847137,-151.0,0.00017998,5]
[405940388,1771429847148,-151.0,0.00017998,5]
[405940389,1771429847159,-151.0,0.00017998,5]
[405940390,1771429847169,-151.0,0.00017998,5]
[405940391,1771429847179,-151.0,0.00017998,5]
[405940392,1771429847189,-500.0,0.00017998,5]
[405940393,1771429847199,-500.0,0.00017998,5]
[405940394,1771429847209,-500.0,0.00017998,5]
[405940395,1771429847219,-500.0,0.00017998,5]
[405940396,1771429847229,-500.0,0.00017998,5]
[405940397,1771429847239,-500.0,0.00017998,5]
[405940398,1771429847249,-500.0,0.00017998,5]
[405940399,1771429847259,-500.0,0.00017998,5]
[405940400,1771429847270,-500.0,0.00017998,5]
[405940401,1771429847280,-500.0,0.00017998,5]
[405940402,1771429847291,-500.0,0.00017998,5]
[405940403,1771429847301,-300.0,0.00017999,2]
[405940404,1771429847311,-300.0,0.00017999,2]
[405940405,1771429847321,-666.0,0.00017999,2]
[405940406,1771429847331,-300.0,0.00017999,2]
[405940407,1771429847342,-226.53812596,0.00017999,2]
[405940408,1771429847352,-195347.9696181,0.00018,2]
[405940409,1771429847748,-538.61541839,0.00018,2]
[405940410,1771429847759,-229621.50161419,0.00018,2]
[405940411,1771429847770,-339.39,0.00018,2]
[405940412,1771429847892,-541.95409886,7.7e-05,2]
[405940413,1771429847901,-77549.81841888,0.00018,2]
[405940414,1771429847936,-999.0,0.00018,2]
[405940415,1771429847957,-541.95409884,0.0001275,2]
[405940416,1771429847966,-5462.44590114,0.00018,2]
[405940417,1771429847977,-753.175,0.00018,2]
[405940423,1771430237700,20000.0,7.5e-05,2]
[405940424,1771430237724,20000.0,7.5e-05,2]
[405940426,1771430255376,150.0,0.00011233,120]
[405940427,1771430397861,-160.79751245,7.499e-05,2]
[405940428,1771430397884,-300.0,7.499e-05,2]
[405940429,1771430397905,-18326.20248755,7.5e-05,2]
[405940445,1771431032187,-871.0,6.7e-05,2]
[405940447,1771431032199,-729.0,6.7e-05,2]
[405940449,1771431032208,-103.33893487,6.75e-05,2]
[405940451,1771431032219,-146.66106513,6.75e-05,2]
[405940453,1771431032228,-349.0857646,6.8e-05,2]
[405940455,1771431032239,-2850.9142354,6.8e-05,2]
[405940457,1771431032249,-17.42567695,6.855e-05,2]
[405940461,1771431032276,-232.57432305,6.855e-05,2]
[405940462,1771431032285,-526.93773695,6.899e-05,2]
[405940463,1771431032296,-673.06226305,6.899e-05,2]
[405940465,1771431032305,-4900.0,6.9e-05,2]
[405940475,1771431032497,-300.0,6.977e-05,2]
[405940477,1771431032507,-500.0,6.978e-05,2]
[405940479,1771431032516,-300.0,6.999e-05,2]
[405940481,1771431032525,-6500.0,7e-05,2]
[405940484,1771431032534,-170.0,7.26e-05,2]
[405940485,1771431032547,-151.0,7.297e-05,2]
[405940486,1771431032556,-151.0,7.297e-05,2]
[405940487,1771431032566,-150.0,7.299e-05,2]
[405940488,1771431032575,-25941.98307605,7.3e-05,2]
[405940489,1771431032586,-52494.38148732,7.3e-05,2]
[405940490,1771431032597,-23686.44152999,7.3e-05,2]
[405940491,1771431032609,-1164.57560884,7.3e-05,2]
[405940492,1771431032635,-526.05978977,7.3e-05,2]
[405940493,1771431032646,-10083.49052511,7.3e-05,2]
[405940496,1771431038303,-334564.94191139,7.3e-05,2]
[405940499,1771431038479,-6496.2786237,7.3e-05,2]
[405940511,1771431040366,-6250.50891526,7.3e-05,2]
[405940514,1771431040431,-3038791.33853257,7.3e-05,2]
[405940515,1771431040444,-1849.353,7.35e-05,2]
[405940516,1771431040453,-163.631,7.35e-05,2]
[405940517,1771431040462,-1283.29230843,7.35e-05,2]
[405940518,1771431040471,-250.0,7.37e-05,2]
[405940519,1771431040480,-150.0,7.373e-05,2]
[405940520,1771431040489,-98587.05001948,7.495e-05,2]
[405940521,1771431040499,-168.0,7.5e-05,3]
[405940522,1771431040507,-5298.58,7.5e-05,2]
[405940523,1771431040517,-9999.99,7.562e-05,2]
[405940524,1771431040527,-9999.99,7.567e-05,2]
[405940525,1771431040537,-6212.8,7.567e-05,2]
[405940526,1771431040546,-999.99,7.567e-05,2]
[405940527,1771431040555,-150.99,7.567e-05,2]
[405940528,1771431040564,-1680.0,7.589e-05,2]
[405940529,1771431040573,-420.0,7.674e-05,2]
[405940530,1771431040582,-420.0,7.699e-05,2]
[405940531,1771431040591,-433.0,7.922e-05,2]
[405940532,1771431040601,-167.0,7.938e-05,2]
[405940533,1771431040610,-255.0,8.029e-05,2]
[405940534,1771431040620,-20031.798547,8.178e-05,2]
[405940535,1771431040629,-500.0,8.219e-05,2]
[405940536,1771431040640,-500.0,8.219e-05,2]
[405940537,1771431040650,-500.0,8.219e-05,2]
[405940538,1771431040659,-500.0,8.219e-05,2]
[405940539,1771431040669,-354.40841089,8.219e-05,2]
[405940540,1771431040678,-1000.0,8.219e-05,2]
[405940541,1771431040688,-2351.0,8.348e-05,2]
[405940542,1771431040697,-168.63570163,8.367e-05,2]
[405940543,1771431040707,-245.86778969,8.367e-05,2]
[405940544,1771431040716,-165.19851393,8.367e-05,2]
[405940545,1771431040726,-500.0,8.367e-05,2]
[405940546,1771431040735,-500.0,8.367e-05,2]
[405940547,1771431040745,-500.0,8.367e-05,2]
[405940548,1771431040754,-167.33946284,8.367e-05,2]
[405940549,1771431040764,-500.0,8.367e-05,2]
[405940550,1771431040773,-307.32831336,8.367e-05,2]
[405940551,1771431040783,-500.0,8.367e-05,2]
[405940552,1771431040793,-500.0,8.367e-05,2]
[405940553,1771431040803,-500.0,8.367e-05,2]
[405940554,1771431040812,-164.39891665,8.367e-05,2]
[405940555,1771431040822,-500.0,8.367e-05,2]
[405940556,1771431040831,-500.0,8.367e-05,2]
[405940557,1771431040844,-263.72762291,8.367e-05,2]
[405940558,1771431040853,-500.0,8.367e-05,2]
[405940559,1771431040862,-200.41863357,8.367e-05,2]
[405940560,1771431040871,-500.87268816,8.367e-05,2]
[405940561,1771431040881,-500.0,8.367e-05,2]
[405940562,1771431040891,-500.0,8.367e-05,2]
[405940563,1771431040900,-500.0,8.367e-05,2]
[405940564,1771431040911,-500.0,8.367e-05,2]
[405940565,1771431040920,-500.0,8.367e-05,2]
[405940566,1771431040929,-500.0,8.367e-05,2]
[405940567,1771431040938,-587.0,8.442e-05,2]
[405940568,1771431040947,-587.0,8.469e-05,2]
[405940569,1771431040956,-500.0,8.526e-05,3]
[405940570,1771431040965,-209.93,8.733e-05,2]
[405940572,1771431040974,-433.0,8.832e-05,2]
[405940573,1771431040983,-250.0,8.853e-05,2]
[405940575,1771431040992,-1000.0,8.915e-05,2]
[405940577,1771431041002,-1000.0,8.915e-05,2]
[405940579,1771431041011,-1000.0,8.915e-05,2]
[405940582,1771431041020,-1000.0,8.915e-05,2]
[405940584,1771431041029,-500.92647612,8.915e-05,2]
[405940585,1771431041048,-1000.0,8.915e-05,2]
[405940586,1771431041058,-341.49183462,8.915e-05,2]
[405940587,1771431041067,-1000.0,8.915e-05,2]
[405940588,1771431041077,-1000.0,8.915e-05,2]
[405940589,1771431041086,-3292.0,9.183e-05,2]
[405940590,1771431041095,-1000.0,9.247e-05,2]
[405940591,1771431041105,-823.0,9.286e-05,2]
[405940592,1771431041114,-823.0,9.316e-05,2]
[405940593,1771431041123,-1500.0,9.463e-05,2]
[405940594,1771431041133,-1500.0,9.463e-05,2]
[405940595,1771431041142,-512.75173509,9.463e-05,2]
[405940596,1771431041151,-1500.0,9.463e-05,2]
[405940597,1771431041161,-1500.0,9.463e-05,2]
[405940598,1771431041170,-1509.709324,9.463e-05,2]
[405940599,1771431041179,-736.0,9.715e-05,2]
[405940600,1771431041189,-151.0,0.0001,2]
[405940601,1771431041198,-151.0,0.0001,2]
[405940602,1771431041207,-151.0,0.0001,2]
[405940603,1771431041217,-151.0,0.0001,2]
[405940604,1771431041227,-151.0,0.0001,2]
[405940605,1771431041236,-151.0,0.0001,2]
[405940606,1771431041245,-151.0,0.0001,2]
[405940607,1771431041254,-151.0,0.0001,2]
[405940608,1771431041263,-151.0,0.0001,2]
[405940609,1771431041273,-151.0,0.0001,2]
[405940610,1771431041282,-151.0,0.0001,2]
[405940611,1771431041291,-151.0,0.0001,2]
[405940612,1771431041300,-151.0,0.0001,2]
[405940613,1771431041310,-151.0,0.0001,2]
[405940614,1771431041319,-151.0,0.0001,2]
[405940615,1771431041328,-151.0,0.0001,2]
[405940616,1771431041337,-151.0,0.0001,2]
[405940617,1771431041347,-151.0,0.0001,2]
[405940618,1771431041356,-151.0,0.0001,2]
[405940619,1771431041365,-151.0,0.0001,2]
[405940620,1771431041374,-285.65412832,0.0001,2]
[405940621,1771431041384,-1447.46038835,0.0001,2]
[405940622,1771431041394,-1447.46038835,0.0001,2]
[405940623,1771431041404,-2000.0,0.00010011,2]
[405940624,1771431041413,-1865.39566179,0.00010011,2]
[405940625,1771431041422,-1460.671579,0.00010011,2]
[405940626,1771431041431,-2000.0,0.00010011,2]
[405940627,1771431041440,-170.44202008,0.00010098,2]
[405940628,1771431041449,-2083.0,0.00010101,2]
[405940629,1771431041458,-1719.89929449,0.0001012,2]
[405940630,1771431041467,-1152.0,0.00010215,2]
[405940631,1771431041476,-1152.0,0.00010247,2]
[405940632,1771431041485,-1000.0,0.00010274,2]
[405940633,1771431041494,-2500.0,0.00010559,2]
[405940634,1771431041504,-1341.95678593,0.00010559,2]
[405940635,1771431041514,-607.0,0.00010686,2]
[405940636,1771431041523,-383.91,0.00010789,2]
[405940637,1771431041533,-8100.0,0.000109,3]
[405940638,1771431041542,-1709.95066447,0.000109,2]
[405940639,1771431041551,-1709.95066445,0.000109,2]
[405940640,1771431041560,-1709.95066445,0.000109,2]
[405940641,1771431041570,-1768.618182,0.00010973,2]
[405940642,1771431041579,-151.0,0.00011096,2]
[405940643,1771431041592,-47536.88696197,0.00011099,2]
[405940644,1771431041601,-47536.88696193,0.00011099,2]
[405940645,1771431041611,-47536.88696193,0.00011099,2]
[405940646,1771431041620,-47536.88696193,0.00011099,2]
[405940647,1771431041630,-39986.09378908,0.00011099,2]
[405940648,1771431041640,-39986.09378908,0.00011099,2]
[405940649,1771431041650,-39986.09378908,0.00011099,2]
[405940650,1771431041659,-3000.0,0.00011107,2]
[405940651,1771431041669,-150.0,0.00011233,2]
[405940652,1771431041679,-13856.88,0.00011233,2]
[405940653,1771431041688,-420.0,0.00011236,2]
[405940654,1771431041697,-1000.0,0.00011301,2]
[405940655,1771431041707,-170.37,0.00011455,2]
[405940656,1771431041716,-508.25195844,0.00011655,2]
[405940657,1771431041726,-203245.0,0.000117,2]
[405940658,1771431041735,-1709.95066445,0.00011814,2]
[405940659,1771431041745,-47536.88696193,0.00011983,2]
[405940660,1771431041754,-39986.09378908,0.00012024,2]
[405940661,1771431041764,-5531.0,0.000121,3]
[405940662,1771431041773,-1000.0,0.00012329,2]
[405940663,1771431041783,-5531.0,0.000125,5]
[405940664,1771431041792,-285.65412831,0.00012575,2]
[405940665,1771431041801,-1283.29230842,0.00012575,2]
[405940666,1771431041811,-271.5,0.00012877,2]
[405940667,1771431041820,-173.62051493,0.0001292,2]
[405940668,1771431041830,-500.0,0.00013,2]
[405940669,1771431041844,-500.0,0.00013,2]
[405940670,1771431041853,-500.0,0.00013,2]
[405940671,1771431041862,-500.0,0.00013,2]
[405940672,1771431041871,-500.0,0.00013,2]
[405940673,1771431041881,-500.0,0.00013,2]
[405940674,1771431041891,-900.0,0.00013,2]
[405940675,1771431041900,-500.0,0.00013,2]
[405940676,1771431041911,-500.0,0.00013,2]
[405940677,1771431041920,-500.0,0.00013,2]
[405940678,1771431041929,-500.0,0.00013,2]
[405940679,1771431041938,-500.0,0.00013,2]
[405940680,1771431041948,-500.0,0.00013,2]
[405940681,1771431041957,-600.0,0.00013,2]
[405940682,1771431041966,-500.0,0.00013,2]
[405940683,1771431041979,-600.0,0.00013,2]
[405940684,1771431041988,-500.0,0.00013,2]
[405940685,1771431041997,-500.0,0.00013,2]
[405940686,1771431042007,-600.0,0.00013,2]
[405940687,1771431042016,-500.0,0.00013,2]
[405940688,1771431042026,-600.0,0.00013,2]
[405940689,1771431042035,-647.40453028,0.00013,2]
[405940690,1771431042045,-600.0,0.00013,2]
[405940691,1771431042054,-600.0,0.00013,2]
[405940692,1771431042063,-600.0,0.00013,2]
[405940693,1771431042072,-600.0,0.00013,2]
[405940694,1771431042082,-600.0,0.00013,2]
[405940695,1771431042091,-500.0,0.00013,2]
[405940696,1771431042101,-600.0,0.00013,2]
[405940697,1771431042110,-500.0,0.00013,2]
[405940698,1771431042119,-600.0,0.00013,2]
[405940699,1771431042128,-600.0,0.00013,2]
[405940700,1771431042138,-1000.0,0.00013,2]
[405940701,1771431042149,-47536.88696193,0.00013167,2]
[405940702,1771431042159,-39986.09378908,0.00013199,2]
[405940703,1771431042168,-1709.95066445,0.00013336,2]
[405940704,1771431042178,-3240.0,0.00013425,2]
[405940705,1771431042187,-500.0,0.00013698,2]
[405940706,1771431042197,-500.0,0.00013698,2]
[405940707,1771431042206,-500.0,0.00013698,2]
[405940708,1771431042215,-173.07181477,0.00013698,2]
[405940709,1771431042225,-500.0,0.00013698,2]
[405940710,1771431042235,-500.0,0.00013698,2]
[405940711,1771431042244,-500.0,0.00013698,2]
[405940712,1771431042253,-500.0,0.00013698,2]
[405940713,1771431042262,-500.0,0.00013698,2]
[405940714,1771431042272,-639.8454937,0.00013698,2]
[405940715,1771431042281,-650.14,0.00013698,2]
[405940716,1771431042290,-650.14,0.00013698,2]
[405940717,1771431042300,-650.14,0.00013698,2]
[405940718,1771431042309,-650.14,0.00013698,2]
[405940719,1771431042319,-650.14,0.00013698,2]
[405940720,1771431042329,-650.14,0.00013698,2]
[405940721,1771431042338,-650.14,0.00013698,2]
[405940722,1771431042348,-650.14,0.00013698,2]
[405940723,1771431042360,-650.14,0.00013698,2]
[405940724,1771431042371,-650.14,0.00013698,2]
[405940725,1771431042380,-650.14,0.00013698,2]
[405940726,1771431042390,-650.14,0.00013698,2]
[405940727,1771431042407,-650.14,0.00013698,2]
[405940728,1771431042417,-500.0,0.00013698,2]
[405940729,1771431042427,-650.14,0.00013698,2]
[405940730,1771431042436,-500.0,0.00013698,2]
[405940731,1771431042446,-650.14,0.00013698,2]
[405940732,1771431042455,-500.0,0.00013698,2]
[405940733,1771431042465,-650.14,0.00013698,2]
[405940734,1771431042477,-650.14,0.00013698,2]
[405940735,1771431042495,-500.0,0.00013698,2]
[405940736,1771431042509,-650.14,0.00013698,2]
[405940737,1771431042518,-500.0,0.00013698,2]
[405940738,1771431042528,-500.0,0.00013698,2]
[405940739,1771431042537,-500.0,0.00013698,2]
[405940740,1771431042547,-500.0,0.00013698,2]
[405940741,1771431042556,-500.0,0.00013698,2]
[405940742,1771431042566,-500.0,0.00013698,2]
[405940743,1771431042575,-500.0,0.00013698,2]
[405940744,1771431042585,-500.0,0.00013698,2]
[405940745,1771431042594,-500.0,0.00013698,2]
[405940746,1771431042606,-500.0,0.00013698,2]
[405940747,1771431042616,-500.0,0.00013698,2]
[405940748,1771431042626,-500.0,0.00013698,2]
[405940749,1771431042635,-500.0,0.00013698,2]
[405940750,1771431042651,-500.0,0.00013698,2]
[405940751,1771431042660,-1223.27,0.00013698,2]
[405940752,1771431042671,-1223.27,0.00013698,2]
[405940753,1771431042681,-1223.27,0.00013698,2]
[405940754,1771431042690,-1223.27,0.00013698,2]
[405940755,1771431042701,-1223.27,0.00013698,2]
[405940756,1771431042710,-1223.27,0.00013698,2]
[405940757,1771431042720,-1223.27,0.00013698,2]
[405940758,1771431042730,-1223.27,0.00013698,2]
[405940759,1771431042740,-1223.27,0.00013698,2]
[405940760,1771431042749,-1223.27,0.00013698,2]
[405940761,1771431042759,-1223.27,0.00013698,2]
[405940762,1771431042768,-1223.27,0.00013698,2]
[405940763,1771431042781,-1223.27,0.00013698,2]
[405940764,1771431042791,-1223.27,0.00013698,2]
[405940765,1771431042801,-1223.27,0.00013698,2]
[405940766,1771431042811,-1223.27,0.00013698,2]
[405940767,1771431042820,-1223.27,0.00013698,2]
[405940768,1771431042829,-1223.27,0.00013698,2]
[405940769,1771431042843,-500.0,0.00013698,2]
[405940770,1771431042853,-500.0,0.00013698,2]
[405940771,1771431042862,-500.0,0.00013698,2]
[405940772,1771431042872,-500.0,0.00013698,2]
[405940773,1771431042883,-500.0,0.00013698,2]
[405940774,1771431042894,-500.0,0.00013698,2]
[405940775,1771431042905,-500.0,0.00013698,2]
[405940776,1771431042916,-500.0,0.00013698,2]
[405940777,1771431042926,-500.0,0.00013698,2]
[405940778,1771431042935,-500.0,0.00013698,2]
[405940779,1771431042945,-500.0,0.00013698,2]
[405940780,1771431042954,-500.0,0.00013698,2]
[405940781,1771431042964,-500.0,0.00013698,2]
[405940782,1771431042973,-500.0,0.00013698,2]
[405940783,1771431042983,-500.0,0.00013698,2]
[405940784,1771431042992,-500.0,0.00013698,2]
[405940785,1771431043002,-500.0,0.00013698,2]
[405940786,1771431043015,-500.0,0.00013698,2]
[405940787,1771431043025,-500.0,0.00013698,2]
[405940788,1771431043034,-500.0,0.00013698,2]
[405940789,1771431043043,-500.0,0.00013698,2]
[405940790,1771431043052,-500.0,0.00013698,2]
[405940791,1771431043062,-500.0,0.00013698,2]
[405940792,1771431043072,-207.45341445,0.00013698,2]
[405940793,1771431043081,-500.0,0.00013698,2]
[405940794,1771431043090,-500.0,0.00013698,2]
[405940795,1771431043100,-500.0,0.00013698,2]
[405940797,1771431043109,-500.0,0.00013698,2]
[405940800,1771431043118,-500.0,0.00013698,2]
[405940803,1771431043128,-500.0,0.00013698,2]
[405940805,1771431043137,-500.0,0.00013698,2]
[405940808,1771431043148,-500.0,0.00013698,2]
[405940810,1771431043158,-500.0,0.00013698,2]
[405940812,1771431043167,-500.0,0.00013698,2]
[405940813,1771431043179,-500.0,0.00013698,2]
[405940814,1771431043188,-500.0,0.00013698,2]
[405940815,1771431043197,-500.0,0.00013698,2]
[405940816,1771431043207,-500.0,0.00013698,2]
[405940817,1771431043226,-500.0,0.00013698,2]
[405940818,1771431043247,-500.0,0.00013698,2]
[405940819,1771431043265,-500.0,0.00013698,2]
[405940820,1771431043288,-500.0,0.00013698,2]
[405940821,1771431043308,-500.0,0.00013698,2]
[405940822,1771431043325,-500.0,0.00013698,2]
[405940823,1771431043336,-500.0,0.00013698,2]
[405940824,1771431043347,-500.0,0.00013698,2]
[405940825,1771431043357,-500.0,0.00013698,2]
[405940826,1771431043370,-500.0,0.00013698,2]
[405940827,1771431043380,-500.0,0.00013698,2]
[405940828,1771431043395,-500.0,0.00013698,2]
[405940829,1771431043408,-500.0,0.00013698,2]
[405940830,1771431043419,-500.0,0.00013698,2]